bitfinex-derivatives/quotes_ETHF0:USTF0_20250928
["timestamp","ask_amount","ask_price","bid_price","bid_amount"]
[1759096926005,0.55845757,4057.5,4057.4,2.03749872]
[1759096926602,0.89695757,4057.5,4057.4,0.2159]
[1759096926805,1.40399194,4057.5,4057.3,0.249]
[1759096927005,0.89695757,4057.5,4057.3,0.249]
[1759096927596,0.7638,4057.4,4057.3,0.90838]
[1759096928406,0.7638,4057.4,4057.3,1.44368]
[1759096929203,0.3348,4057.4,4057.3,2.28653872]
[1759096929399,0.33675757,4057.5,4057.3,1.96573872]
[1759096929601,0.33675757,4057.5,4057.4,0.7512]
[1759096929910,0.55845757,4057.5,4057.4,0.7512]
[1759096930108,0.00195757,4057.5,4057.4,0.7512]
[1759096930407,0.00195757,4057.5,4057.4,2.08124811]
[1759096930804,0.00195757,4057.5,4057.4,5.28904811]
[1759096931001,0.00195757,4057.5,4057.4,8.959]
[1759096931206,0.022,4057.9,4057.8,1.59405872]
[1759096931405,0.022,4057.9,4057.8,1.84305872]
[1759096932100,0.02474161,4057.9,4057.8,2.28648872]
[1759096932305,0.02474161,4057.9,4057.8,2.49286155]
[1759096935707,0.5315,4059.3,4059.2,1.18778]
[1759096936007,0.5315,4059.3,4059.2,2.48701155]
[1759096936609,0.53329382,4059.3,4059.2,2.4893087]
[1759096937711,0.53329382,4059.3,4059.2,1.19007715]
[1759096937908,0.73999382,4059.3,4059.2,1.12727715]
[1759096938107,0.73999382,4059.3,4059.2,1.44007715]
[1759096940810,0.53329382,4059.3,4059.2,4.64787715]
[1759096941011,0.00179382,4059.3,4059.2,4.64787715]
[1759096941820,0.73999382,4059.3,4059.2,5.6971087]
[1759096942023,0.73999382,4059.3,4059.2,0.00229715]
[1759096942314,0.73999382,4059.3,4059.2,0.25229715]
[1759096942723,0.73999382,4059.3,4059.2,0.46949715]
[1759096947516,0.73999382,4059.3,4059.2,0.25229715]
[1759096948421,0.73999382,4059.3,4059.2,0.46739715]
[1759096948926,0.73999382,4059.3,4059.2,0.98699715]
[1759096949330,0.73999382,4059.3,4059.2,0.67389715]
[1759096950431,0.73999382,4059.3,4059.2,0.25229715]
[1759096953233,0.73999382,4059.3,4059.2,0.00229715]
[1759096954727,0.73999382,4059.3,4059.2,0.73699715]
[1759096956033,0.73999382,4059.3,4059.2,0.42389715]
[1759096956836,0.73999382,4059.3,4059.2,0.21739715]
[1759096957035,0.53329382,4059.3,4059.2,0.42389715]
[1759096957236,0.75299382,4059.3,4059.2,0.00229715]
[1759096958339,1.2587906,4059.3,4059.2,0.00229715]
[1759096958541,1.2587906,4059.3,4059.2,0.21739715]
[1759096959639,0.75299382,4059.3,4059.2,0.73699715]
[1759096960242,1.25938316,4059.3,4059.2,0.73699715]
[1759096960633,0.00179382,4059.3,4059.2,0.73699715]
[1759096960838,0.00179382,4059.3,4059.2,3.94479715]
[1759096961137,0.00179382,4059.3,4059.2,8.94479715]
[1759096961639,0.31229382,4059.3,4059.2,3.94479715]
[1759096962339,0.00179382,4059.3,4059.2,3.94479715]
[1759096962844,0.51839382,4059.3,4059.2,3.94479715]
[1759096963044,0.73809382,4059.3,4059.2,3.94479715]
[1759096963237,0.73809382,4059.3,4059.2,0.98699715]
[1759096963543,0.00179382,4059.3,4059.2,5.98699715]
[1759096963945,3.2078,4060.4,4060.3,1.17787]
[1759096963946,3.7244,4060.4,4060.3,1.17787]
[1759096964136,4.23092862,4060.4,4060.3,2.47710155]
[1759096964639,3.71432862,4060.4,4060.3,2.47710155]
[1759096964839,3.71700228,4060.4,4060.3,2.47710155]
[1759096965041,3.21047366,4060.4,4060.3,2.47710155]
[1759096965240,0.00267366,4060.4,4060.3,2.67840323]
[1759096965648,0.00267366,4060.4,4060.3,7.67840323]
[1759096965847,0.00267366,4060.4,4060.3,9.00093795]
[1759096966539,0.00267366,4060.4,4060.3,7.67840323]
[1759096966739,0.00267366,4060.4,4060.3,3.9979971]
[1759096966935,0.73897366,4060.4,4060.3,0.4216]
[1759096967138,1.24489227,4060.4,4060.3,0.4216]
[1759096967346,1.24489227,4060.4,4060.3,0.7347]
[1759096967647,0.51927366,4060.4,4060.3,0.7347]
[1759096967851,0.73897366,4060.4,4060.3,0.7347]
[1759096968034,0.73897366,4060.4,4060.3,0.9867]
[1759096968542,0.51927366,4060.4,4060.3,0.9867]
[1759096968944,0.00267366,4060.4,4060.3,0.9867]
[1759096970241,0.00267366,4060.4,4060.3,5.9867]
[1759096970442,0.2061,4061.4,4061.3,0.86465]
[1759096970640,0.5166,4061.4,4061.3,1.42975]
[1759096970940,3.9441,4061.8,4061.7,0.4216]
[1759096971255,4.4492447,4061.8,4061.7,0.4216]
[1759096971548,4.45195319,4061.8,4061.7,0.4216]
[1759096972348,3.94680849,4061.8,4061.7,0.4216]
[1759096973347,3.94680849,4061.8,4061.7,0.2151]
[1759096973750,3.94680849,4061.8,4061.6,0.252]
[1759096973945,3.94680849,4061.8,3451.0,0.00586209]
[1759096973946,0.4116,4061.0,4060.9,4.0757]
[1759096974154,0.8715,4061.0,4060.9,4.3277]
[1759096974351,0.5362,4061.0,4060.9,4.6411]
[1759096974651,0.741,4061.0,4060.9,4.6411]
[1759096975846,0.8715,4061.0,4060.9,3.4217]
[1759096976046,0.8715,4061.0,4059.9,1.31959387]
[1759096976047,0.8715,4060.5,4060.4,0.2139]
[1759096976249,1.3147,4060.0,4059.2,0.44557715]
[1759096976454,0.5362,4059.5,4059.4,3.946]
[1759096976652,0.741,4059.9,4059.8,0.2139]
[1759096976841,0.741,4059.9,4059.8,0.4659]
[1759096977041,0.741,4059.9,4059.8,0.252]
[1759096986657,0.3294,4059.8,4059.4,3.2078]
[1759096986866,0.1305,4060.0,4059.2,0.00229715]
[1759096986867,1.18428,4059.3,4059.2,0.00229715]
[1759096987070,1.18428,4059.3,4059.2,0.25429715]
[1759096987664,1.18428,4059.3,4059.2,0.46819715]
[1759096987857,1.18428,4059.3,4059.2,0.25429715]
[1759096988655,1.18428,4059.3,4059.2,0.00229715]
[1759096988855,0.741,4058.4,4058.3,3.6737]
[1759096989062,0.741,4058.4,4058.3,4.198]
[1759096989272,1.18438,4058.4,4058.3,4.198]
[1759096989766,1.18685132,4058.4,4058.3,3.88769463]
[1759096992063,1.18685132,4058.4,4058.3,0.25509463]
[1759096992757,1.18685132,4058.4,4058.3,0.00309463]
[1759096992962,0.8918,4057.5,4057.4,0.2265]
[1759096993351,0.3156,4057.9,4057.5,0.1279]
[1759096993563,0.22487132,4058.4,4058.3,0.7614]
[1759096993957,3.65217132,4058.4,4058.3,0.00295722]
[1759096994261,3.65217132,4058.4,4057.3,3.2078]
[1759096994262,0.4419,4057.4,4057.3,3.4343]
[1759096994458,3.2078,4057.8,4057.4,0.44349]
[1759096994663,0.538,4057.8,4057.7,0.7614]
[1759096994857,0.253,4058.2,4057.7,0.7614]
[1759096994858,0.759,4058.2,4057.7,1.0144]
[1759096995057,0.7575,4058.1,4058.0,0.4516]
[1759096995263,0.3156,4058.1,4058.0,0.00197148]
[1759096995453,0.44352,4057.2,4056.9,3.5176]
[1759096995760,0.2224,4057.1,4057.0,0.9744]
[1759096996066,0.2224,4057.1,4057.0,1.0144]
[1759096996359,0.538,4057.4,4057.3,0.2265]
[1759096996562,0.1343,4058.0,4057.6,0.4516]
[1759096996766,0.1343,4057.5,4057.1,0.3098]
[1759096997066,0.7575,4057.2,4057.1,0.2265]
[1759096997265,0.3156,4057.2,4057.1,1.0144]
[1759096997461,0.3156,4057.4,4057.3,0.2265]
[1759096997662,0.538,4057.4,4057.3,0.7614]
[1759096997867,0.7575,4057.4,4057.3,0.7614]
[1759096998059,0.7575,4057.4,4057.3,0.2265]
[1759096998458,0.7575,4057.4,4057.3,0.4516]
[1759096999165,0.7575,4057.4,4057.1,0.253]
[1759096999464,0.2224,4057.2,4057.1,1.0144]
[1759096999865,0.538,4057.2,4057.1,1.0144]
[1759097000562,0.3156,4057.4,4057.1,0.4781]
[1759097000766,0.3156,4057.4,4057.3,0.7614]
[1759097000767,0.538,4057.4,4057.3,0.7614]
[1759097000965,0.7575,4057.4,4057.3,0.4516]
[1759097001270,1.20099,4057.4,4057.1,0.253]
[1759097001661,0.7575,4057.4,4057.1,0.253]
[1759097001861,0.7575,4057.4,4057.3,0.4516]
[1759097002364,0.7575,4057.4,4057.3,0.2265]
[1759097002669,0.7575,4057.1,4057.0,0.00228864]
[1759097002868,0.7575,4057.1,4057.0,0.76368864]
[1759097003164,0.7575,4057.1,4057.0,0.70688864]
[1759097003367,1.20102,4057.1,4057.0,0.25528864]
[1759097003561,1.20102,4057.1,4057.0,0.00228864]
[1759097005371,9.40882,4057.1,4057.0,0.00228864]
[1759097006466,4.40882,4057.1,4057.0,0.21438864]
[1759097006767,9.40882,4057.1,4057.0,0.00228864]
[1759097009872,9.91168997,4057.1,4057.0,0.00228864]
[1759097010573,4.91168997,4057.1,4057.0,0.00228864]
[1759097011372,4.40882,4057.1,4057.0,0.00228864]
[1759097012375,4.91178194,4057.1,4057.0,0.00228864]
[1759097012863,5.16478194,4057.1,4057.0,0.00228864]
[1759097013468,3.4321,4057.1,4056.9,0.44354]
[1759097013775,3.7732,4057.1,4057.0,0.7768]
[1759097013969,0.5654,4057.1,4057.0,0.7768]
[1759097014574,0.5654,4057.1,4057.0,0.7799919]
[1759097014771,0.7803,4057.1,4057.0,0.2152919]
[1759097015073,0.7803,4057.1,4057.0,0.0031919]
[1759097015375,0.7803,4057.1,4057.0,0.2152919]
[1759097016768,0.7803,4057.1,4057.0,0.4381919]
[1759097017075,0.7803,4057.1,4057.0,0.7799919]
[1759097017577,0.7803,4057.1,4057.0,0.4381919]
[1759097018277,1.28480661,4057.1,4057.0,0.4381919]
[1759097018671,1.28480661,4057.1,4057.0,0.0031919]
[1759097021079,0.9142,4056.0,4055.9,3.9846]
[1759097021383,1.35784,4056.0,4055.9,3.9846]
[1759097021679,0.9142,4056.0,4055.9,3.9846]
[1759097021974,0.9142,4056.0,4055.9,3.98763846]
[1759097022479,0.9142,4056.0,4055.9,3.64583846]
[1759097023079,1.41962333,4056.0,4055.9,0.21513846]
[1759097023268,4.62742333,4056.0,4055.9,0.00303846]
[1759097025074,4.62742333,4056.0,4054.9,3.6428]
[1759097025075,0.4392,4055.0,4054.9,3.6428]
[1759097025380,0.254,4055.6,4055.5,0.7768]
[1759097025576,1.07080231,4055.6,4055.5,0.7768]
[1759097026068,1.07252878,4055.6,4055.5,0.77928569]
[1759097026478,1.28742878,4055.6,4055.5,0.77928569]
[1759097029577,1.28742878,4055.6,4055.5,0.00248569]
[1759097029979,1.28742878,4055.6,4055.5,0.21458569]
[1759097030777,0.73142878,4055.6,4055.5,0.90428569]
[1759097030978,0.00172647,4055.6,4055.5,0.90428569]
[1759097031378,0.22602647,4055.6,4055.5,0.90428569]
[1759097031577,0.22602647,4055.6,4055.5,0.77928569]
[1759097031578,0.56712647,4055.6,4055.5,0.77928569]
[1759097031774,0.78202647,4055.6,4055.5,0.77928569]
[1759097031976,0.78202647,4055.6,4055.5,0.43748569]
[1759097032371,0.78202647,4055.6,4055.5,0.21458569]
[1759097032573,1.28713675,4055.6,4055.5,0.00248569]
[1759097034485,1.28713675,4055.6,4055.5,0.21478569]
[1759097034784,1.28713675,4055.6,4055.5,0.00248569]
[1759097034985,1.28713675,4055.6,4055.5,0.21478569]
[1759097035489,1.28713675,4055.6,4055.5,0.00248569]
[1759097039886,1.54013675,4055.6,4055.5,0.00248569]
[1759097040076,1.54013675,4055.6,4055.5,0.21478569]
[1759097040481,1.54013675,4055.6,4055.5,0.00248569]
[1759097041786,0.7473,4054.9,4054.4,0.324]
[1759097041987,0.8836,4054.5,4054.4,0.2123]
[1759097042295,0.7473,4054.9,4054.8,0.7527]
[1759097042483,0.2065,4055.3,4055.2,0.2123]
[1759097042688,0.5362,4055.3,4055.2,0.75459542]
[1759097042885,0.7473,4055.3,4055.2,0.75459542]
[1759097043091,0.7473,4055.3,4055.2,0.43059542]
[1759097043892,0.7473,4055.3,4055.2,0.75459542]
[1759097044188,3.2078,4055.7,4055.3,0.324]
[1759097044389,3.2078,4055.7,4055.5,1.7208299]
[1759097044585,0.41932647,4055.6,4055.5,1.5958299]
[1759097044786,0.74902647,4055.6,4055.5,1.5958299]
[1759097044987,0.7473,4055.3,4055.2,0.00189542]
[1759097045690,1.5904299,4055.3,4055.2,0.00189542]
[1759097045890,2.09559852,4055.3,4055.2,0.00189542]
[1759097047894,0.2065,4054.8,4054.1,3.2078]
[1759097048090,0.7473,4053.7,4053.6,4.0804]
[1759097048395,0.7473,4054.4,4054.3,0.7527]
[1759097048985,0.7473,4054.4,4054.3,0.43045736]
[1759097049195,0.7473,4054.4,4054.3,0.75445736]
[1759097049396,0.58006,4055.0,4054.3,5.32575736]
[1759097049697,1.04192047,4054.9,4054.8,1.5958299]
[1759097050092,0.3297,4055.2,4054.9,0.44376]
[1759097050291,0.5362,4055.2,4055.1,1.5958299]
[1759097050500,1.25316891,4055.2,4055.1,0.2123]
[1759097051192,1.25316891,4055.2,4055.1,0.7527]
[1759097051392,1.25316891,4055.2,4055.1,1.5958299]
[1759097054191,1.25316891,4055.2,4055.1,0.7527]
[1759097054395,0.2178,4054.7,4054.6,4.40889]
[1759097054594,0.2178,4054.7,4054.6,3.9651]
[1759097054595,0.7495,4054.7,4054.6,3.9651]
[1759097055201,0.5306,4055.2,4055.1,0.7573]
[1759097055395,1.0369727,4055.2,4055.1,0.7573]
[1759097056100,1.2558727,4055.2,4055.1,0.7573]
[1759097056297,1.2558727,4055.2,4054.6,3.2078]
[1759097056492,0.7495,4054.7,4054.6,3.4218]
[1759097056692,0.7495,4054.7,4054.6,3.8836]
[1759097056996,0.7495,4054.7,4054.6,4.2181]
[1759097057294,0.7495,4054.7,4054.6,3.8836]
[1759097058002,0.7495,4054.7,4054.6,4.2181]
[1759097058606,0.1337,4055.0,4054.6,5.71275249]
[1759097058899,0.819219,4054.9,4054.8,0.7573]
[1759097059101,1.037019,4054.9,4054.8,0.7573]
[1759097059295,0.5306,4054.9,4054.8,0.7573]
[1759097061105,1.25598554,4054.9,4054.8,0.4228]
[1759097061309,0.4367,4054.7,4054.6,3.4608]
[1759097061603,0.7495,4054.7,4054.6,4.2181]
[1759097061902,0.7495,4054.7,4054.6,3.8836]
[1759097062202,0.50662351,4054.7,4054.6,1.0103]
[1759097062398,0.3128,4055.0,4054.9,0.214]
[1759097062599,1.03731462,4055.0,4054.9,0.7573]
[1759097063898,0.5312,4055.5,4055.4,0.7493]
[1759097064099,0.5312,4055.5,4055.1,0.2086]
[1759097064100,0.4354,4055.2,4055.1,0.2086]
[1759097064304,0.7473,4054.8,4054.7,1.0023]
[1759097064603,0.7473,4054.8,4054.7,0.4261]
[1759097064902,1.25427003,4054.8,4054.7,0.2086]
[1759097067001,1.19108,4054.7,4054.6,3.2078]
[1759097067300,1.03817003,4054.7,4054.6,3.9571]
[1759097067507,0.50697003,4054.7,4054.6,3.9571]
[1759097067803,0.3119,4054.8,4054.6,3.6339]
[1759097068002,1.03817003,4054.7,4054.6,3.6339]
[1759097068404,1.03817003,4054.7,4054.6,3.9571]
[1759097073504,0.44373,4055.2,4054.6,3.531]
[1759097073702,0.2193,4054.8,4054.6,4.85059387]
[1759097073908,0.7473,4054.8,4054.7,0.2086]
[1759097074308,0.7473,4054.8,4054.7,0.7493]
[1759097074808,0.7473,4054.8,4054.7,0.4261]
[1759097075200,0.7473,4054.8,4054.7,0.7493]
[1759097075396,0.3119,4054.8,4054.7,0.7493]
[1759097075601,0.5312,4055.2,4055.1,0.7493]
[1759097075811,1.03836806,4055.2,4055.1,0.7493]
[1759097076013,1.25446806,4055.2,4055.1,0.4261]
[1759097076506,0.4354,4054.9,4054.8,0.2086]
[1759097076811,0.94256806,4054.9,4054.8,0.4616]
[1759097077110,1.25446806,4054.9,4054.8,0.4616]
[1759097078005,1.25446806,4054.9,4054.8,0.6791]
[1759097078201,1.25446806,4054.9,4054.8,1.0023]
[1759097079606,0.50716806,4054.9,4054.8,1.0023]
[1759097079805,0.1356,4055.5,4055.1,0.4261]
[1759097079806,0.3119,4055.2,4055.1,0.4261]
[1759097080107,1.19103,4055.2,4055.1,0.7493]
[1759097080407,0.3119,4055.5,4055.4,0.2086]
[1759097080714,1.39012295,4055.5,4055.3,0.253]
[1759097081014,1.25452295,4055.4,4055.3,0.253]
[1759097081208,1.25452295,4055.4,4055.3,0.4616]
[1759097082311,1.25452295,4055.4,4055.3,0.6791]
[1759097082513,0.7473,4055.4,4055.3,1.0023]
[1759097096041,1.76922283,4057.0,4056.0,0.1268]
[1759097096247,0.2131,4057.9,4057.8,0.66052]
[1759097096539,0.2131,4057.9,4057.8,2.44349249]
[1759097097031,0.21591273,4057.9,4057.8,2.44575685]
[1759097097234,0.1333,4058.5,4058.4,0.87905]
[1759097097235,0.5589,4058.5,4058.4,0.87905]
[1759097097435,0.5589,4058.5,4058.4,2.50952249]
[1759097097937,3.2078,4059.2,4058.4,2.50952249]
[1759097097938,0.5589,4059.0,4058.9,1.2026]
[1759097098131,0.2131,4059.2,4059.1,0.87898]
[1759097098334,0.54563977,4059.2,4059.1,1.45858]
[1759097100434,0.75813977,4059.2,4059.1,1.45858]
[1759097100638,0.75813977,4059.2,4059.1,1.13498]
[1759097102037,0.75813977,4059.2,4059.1,1.45858]
[1759097102343,0.00313977,4059.2,4059.1,1.45858]
[1759097103737,3.2078,4060.3,4059.7,1.20252]
[1759097103942,0.5425,4059.9,4059.8,0.6907]
[1759097104134,0.755,4059.9,4059.8,0.6907]
[1759097104745,0.75784166,4059.9,4059.8,0.6907]
[1759097106640,0.75784166,4059.9,4059.8,1.0143]
[1759097106641,0.00284166,4059.9,4059.8,1.0143]
[1759097107242,0.54534166,4059.9,4059.8,1.0143]
[1759097107842,0.00284166,4059.9,4059.8,1.0143]
[1759097113054,0.3133,4061.2,4061.1,0.5324]
[1759097113256,0.737,4061.2,4061.1,4.43914069]
[1759097113449,0.737,4061.2,4061.1,4.11634069]
[1759097114055,0.73922537,4061.2,4061.1,4.1180782]
[1759097114252,0.73922537,4061.2,4061.1,3.66572391]
[1759097115353,0.00222537,4061.2,4061.1,3.98852391]
[1759097117850,0.73922537,4061.2,4061.1,0.67843751]
[1759097118847,0.73922537,4061.2,4061.1,0.67743751]
[1759097120547,0.52922537,4061.2,4061.1,1.00023751]
[1759097121350,0.73922537,4061.2,4061.1,0.67743751]
[1759097121957,0.73922537,4061.2,4061.1,0.00173751]
[1759097122162,0.73922537,4061.2,4061.1,0.25573751]
[1759097122657,0.73922537,4061.2,4061.1,1.00023751]
[1759097123356,0.73922537,4061.2,4061.1,0.67743751]
[1759097124755,0.52922537,4061.2,4061.1,1.00143751]
[1759097126350,0.00222537,4061.2,4061.1,2.68231783]
[1759097127053,0.34372537,4061.2,4061.1,2.68231783]
[1759097127257,0.00222537,4061.2,4061.1,2.68231783]
[1759097128060,0.347,4062.0,4061.9,0.88318]
[1759097128248,0.347,4062.0,4061.9,1.28064016]
[1759097128249,0.91277463,4062.0,4061.9,1.28064016]
[1759097128453,0.91277463,4062.0,4061.9,1.31904016]
[1759097129054,0.91551151,4062.0,4061.9,1.31904016]
[1759097130255,0.00273688,4062.0,4061.9,2.30162016]
[1759097131150,0.00273688,4062.0,4061.9,4.254801]
[1759097132352,0.00273688,4062.0,4061.9,2.30162016]
[1759097132552,0.2137,4062.8,4062.0,0.0653]
[1759097132760,0.7817,4062.8,4062.7,4.04824016]
[1759097132952,1.27048739,4062.8,4062.7,1.09444016]
[1759097133156,1.27048739,4062.8,4062.7,0.254]
[1759097133560,1.27237001,4062.8,4062.7,0.254]
[1759097134063,1.27237001,4062.8,4062.6,0.84044016]
[1759097134064,0.4402,4061.8,4061.7,3.4324]
[1759097134261,0.7817,4061.8,4061.7,4.74244016]
[1759097134563,0.7817,4061.8,4061.7,5.06644016]
[1759097135262,0.5552,4061.8,4061.7,5.06644016]
[1759097135556,0.477,4062.0,4061.9,0.2246]
[1759097135766,0.477,4062.0,4061.9,0.7642]
[1759097136061,0.6907,4062.0,4061.9,0.7642]
[1759097136265,1.18000155,4062.0,4061.9,0.7642]
[1759097137263,1.40650155,4062.0,4061.9,0.6942]
[1759097139472,0.5552,4062.5,4062.4,0.7642]
[1759097139768,0.6786,4063.0,4062.9,1.20707]
[1759097139967,1.16821731,4063.0,4062.9,1.46107]
[1759097140566,1.17125719,4063.0,4062.9,1.46107]
[1759097140764,1.39775719,4063.0,4062.9,1.13707]
[1759097142266,1.74998741,4064.4,4063.2,1.10709]
[1759097142470,0.4402,4064.6,4064.5,0.2246]
[1759097142766,3.2078,4065.6,4065.0,0.66723]
[1759097142973,3.2078,4065.6,4065.5,0.44259]
[1759097143275,0.3415,4066.2,4065.6,0.324]
[1759097143569,0.00172402,4066.2,4065.9,3.65034]
[1759097143756,0.00172402,4066.2,4066.1,0.76652]
[1759097143963,0.00172402,4066.2,4066.0,0.256]
[1759097143964,3.2078,4067.0,4066.0,43.7243]
[1759097144264,15.9011116,4072.5,4069.8,11.05305]
[1759097144478,0.1355,4074.0,4072.4,11.04605]
[1759097144769,3.2078,4076.5,4074.2,0.44164]
[1759097145069,3.3433,4078.0,4076.9,0.44135]
[1759097145367,2.00110715,4079.3,4078.6,0.44116]
[1759097145368,0.1355,4079.0,4078.6,0.44116]
[1759097145567,0.1355,4079.0,4078.9,6.19258836]
[1759097145868,0.1355,4079.5,4079.4,2.98478836]
[1759097146076,0.1355,4080.5,4080.1,0.441]
[1759097146365,0.1355,4081.0,4080.6,3.0723]
[1759097146572,0.1355,4083.8,4082.2,0.44078]
[1759097146774,0.1355,4085.9,4084.2,0.44055]
[1759097146964,0.1355,4086.9,4085.8,3.18086186]
[1759097147270,0.1355,4094.1,4089.7,3.2078]
[1759097147472,0.1355,4095.9,4092.9,10.99083]
[1759097147770,0.1355,4095.9,4095.0,0.2]
[1759097147771,0.13774145,4095.9,4095.0,0.2]
[1759097148075,8.80366747,4095.8,4095.0,0.3233]
[1759097148366,7.11325827,4095.1,4092.5,3.2078]
[1759097148576,3.2078,4092.6,4091.1,0.1233]
[1759097148766,3.2078,4092.6,4088.9,11.00143]
[1759097148767,3.90545827,4091.3,4089.3,3.2078]
[1759097148964,0.371,4091.2,4091.1,0.1233]
[1759097149167,3.2078,4092.0,4091.2,0.324]
[1759097149458,3.2078,4092.0,4091.2,5.00224082]
[1759097149459,0.00296148,4092.0,4091.2,5.00224082]
[1759097149660,0.00296148,4092.0,4091.1,3.3311]
[1759097149661,3.13337476,4091.9,4091.1,2.79638483]
[1759097149865,3.2078,4092.9,4089.8,0.1233]
[1759097149866,3.2078,4091.6,4089.9,3.2078]
[1759097150075,3.90545827,4090.6,4088.2,3.2078]
[1759097150262,3.90545827,4090.6,4087.7,3.2078]
[1759097150263,3.2078,4093.5,4091.2,11.43513]
[1759097150464,2.17597696,4095.4,4093.7,0.1233]
[1759097150465,0.3415,4095.4,4093.7,0.1233]
[1759097150666,0.3415,4095.4,4092.0,3.2078]
[1759097150667,0.3415,4093.8,4092.0,3.2078]
[1759097150970,0.395,4095.3,4092.1,3.2078]
[1759097150971,0.3415,4092.9,4092.1,3.2078]
[1759097151270,5.19138434,4092.2,4091.2,3.2078]
[1759097151472,3.2078,4091.4,4090.1,3.2078]
[1759097151675,0.00249838,4091.4,4091.2,3.2078]
[1759097151967,3.2078,4093.7,4091.3,0.324]
[1759097152172,3.2078,4093.6,4092.4,0.324]
[1759097152468,10.97701,4098.1,4093.6,0.324]
[1759097152670,0.3415,4096.8,4094.8,0.324]
[1759097152860,1.98358434,4095.2,4093.8,0.324]
[1759097153060,3.2078,4094.5,4093.8,0.32610239]
[1759097153268,0.3415,4093.8,4093.4,0.01368]
[1759097153469,0.78108,4093.4,4090.9,0.324]
[1759097153664,11.43527,4091.2,4088.6,0.3222]
[1759097153867,3.5423,4088.9,4087.6,0.3222]
[1759097154072,0.3345,4088.1,4086.6,3.2078]
[1759097154263,5.52588434,4086.7,4086.6,0.00295953]
[1759097154464,0.3345,4085.8,4083.9,0.3222]
[1759097154777,3.2078,4084.1,4082.3,0.3222]
[1759097154977,3.2078,4082.5,4081.6,0.3222]
[1759097155272,3.2078,4082.5,4079.8,11.02616]
[1759097155273,3.2078,4083.7,4082.2,0.3222]
[1759097155463,3.2078,4084.3,4082.8,3.2078]
[1759097155660,3.2078,4083.6,4082.9,0.3222]
[1759097155864,3.2078,4083.0,4081.6,0.0019966]
[1759097156063,11.01407,4084.3,4081.1,3.2078]
[1759097156064,3.2078,4082.2,4081.1,3.2078]
[1759097156267,3.2078,4081.9,4081.7,0.44083]
[1759097156466,3.2078,4081.9,4081.8,0.3222]
[1759097156664,11.01138,4085.3,4081.5,0.1249]
[1759097156665,3.2078,4083.8,4082.7,0.44072]
[1759097156873,3.2078,4083.1,4082.8,0.3222]
[1759097157063,0.00305842,4083.8,4082.8,0.3222]
[1759097157263,3.2078,4085.3,4083.8,0.3222]
[1759097157469,3.2078,4085.3,4083.5,11.01617]
[1759097157767,3.2078,4084.9,4083.7,3.2078]
[1759097157961,3.2078,4084.9,4084.3,3.2078]
[1759097158166,0.3345,4086.6,4084.5,0.3222]
[1759097158366,3.2078,4085.7,4084.7,3.2078]
[1759097158673,3.2078,4085.7,4084.5,0.3222]
[1759097158873,0.00203547,4086.6,4085.5,3.2078]
[1759097159074,3.2078,4086.2,4084.9,0.3222]
[1759097159264,3.2078,4085.5,4084.7,3.2078]
[1759097159470,3.2078,4086.0,4084.7,3.2078]
[1759097159670,3.6738,4086.0,4085.4,3.2078]
[1759097159974,3.2078,4086.0,4085.1,0.76267]
[1759097160279,0.00203547,4086.6,4085.4,3.90545827]
[1759097160475,0.00203547,4086.6,4085.7,3.2078]
[1759097160672,0.00203547,4086.6,4085.7,3.21062932]
[1759097161178,0.00203547,4086.6,4086.5,0.76252]
[1759097161369,11.12471,4090.5,4086.5,0.76252]
[1759097161370,3.2078,4089.3,4087.1,11.00639]
[1759097161575,3.2078,4089.3,4088.5,3.2078]
[1759097162078,0.43992,4090.2,4089.0,3.2078]
[1759097162079,0.3345,4090.2,4089.0,3.2078]
[1759097162279,0.468,4090.1,4089.0,0.00226823]
[1759097162576,0.33750316,4090.2,4089.0,0.00226823]
[1759097162577,1.98358434,4089.4,4089.0,0.00226823]
[1759097162877,3.64777,4089.8,4089.0,0.00226823]
[1759097163171,1.98358434,4089.1,4088.0,3.2078]
[1759097163372,1.98358434,4088.4,4088.0,3.2078]
[1759097163567,0.468,4089.0,4088.0,3.2078]
[1759097163776,1.98358434,4088.1,4087.2,3.2078]
[1759097163978,0.3345,4087.4,4086.7,3.2078]
[1759097164174,0.3345,4087.4,4086.7,0.00285506]
[1759097164175,3.2078,4087.1,4086.7,0.00285506]
[1759097164483,0.00222632,4087.1,4086.7,0.00285506]
[1759097164975,2.45158434,4087.0,4086.7,0.00285506]
[1759097165178,1.98358434,4086.9,4086.7,0.00285506]
[1759097165370,1.98358434,4086.9,4085.6,0.44041]
[1759097165371,1.98358434,4086.2,4084.5,0.3222]
[1759097165567,5.19138434,4085.5,4084.5,0.3222]
[1759097165776,3.5423,4086.1,4084.9,3.2078]
[1759097165977,1.98358434,4085.6,4084.9,3.2078]
[1759097166172,1.98358434,4085.6,4084.5,0.3222]
[1759097166378,3.2078,4085.4,4084.6,0.44052]
[1759097166574,3.2078,4085.4,4085.1,0.44047]
[1759097166782,0.3345,4086.8,4085.4,0.3222]
[1759097166973,3.2078,4086.5,4085.4,0.3222]
[1759097167176,0.44035,4086.3,4085.2,3.2078]
[1759097167487,0.469,4086.4,4084.5,0.32423542]
[1759097167488,0.3345,4085.2,4084.5,0.00203542]
[1759097167785,1.98358434,4084.6,4083.3,0.44066]
[1759097167978,3.2078,4084.2,4083.7,0.76282]
[1759097168179,3.2078,4084.7,4083.9,0.3222]
[1759097168385,3.2078,4085.3,4084.0,3.2078]
[1759097168576,1.98358434,4084.8,4084.2,0.44056]
[1759097168777,3.21067111,4085.3,4084.2,0.44056]
[1759097168974,1.98358434,4084.4,4084.0,3.20957872]
[1759097169187,0.00287111,4085.3,4085.1,0.44046]
[1759097169378,0.00287111,4085.3,4085.1,3.64826]
[1759097169576,0.00287111,4085.3,4085.2,0.3222]
[1759097169877,0.00287111,4085.3,4085.1,3.2078]
[1759097170574,3.5423,4087.0,4085.2,0.472]
[1759097170781,3.5423,4087.0,4086.1,3.2078]
[1759097170976,3.5423,4087.0,4086.3,0.44034]
[1759097171182,0.03696438,4087.2,4086.8,0.3222]